Cogmind - Beta 14 @@@ ROGUE MODE // 2024.11.02 @ 20:07:14 Player: Kate+Gabe4evr Result: Destroyed by Triborg with Siege Cannon Performance ------------- Evolutions (0) 0 Regions Visited (4) 800 Robots Destroyed (23) 115 Value Destroyed (740) 740 Prototype IDs (1) 20 Alien Tech Used (0) 0 Bonus (-231) -231 TOTAL SCORE: 1444 Bonus ------- Friendly Fire -231 Cogmind --------- Core Integrity 0/250 Matter 300/300 Energy 125/125 System Corruption 1% Temperature Cool (0) Movement Walking (190) Ox1 Location -9/Scraptown Parts ------- > --- POWER (1) -------- Light Ion Engine > --- PROPULSION (2) --- Aluminum Leg (fused) Carbon-fiber Leg > --- UTILITY (2) ------ Disposable Heat Sink High-capacity Storage Unit > --- WEAPON (2) ------- (None) > --- INVENTORY (20) --- Scrap Shield Heavy Assault Rifle Subdweller Machine Gun Makeshift Spear Peak State ------------ > --- POWER ------------ Light Ion Engine > --- PROPULSION ------- Aluminum Leg Carbon-fiber Leg > --- UTILITY ---------- Disposable Heat Sink High-capacity Storage Unit > --- WEAPON ----------- Heavy Assault Rifle Heavy Assault Rifle > --- INVENTORY -------- Scrap Shield Subdweller Beam Cannon Subdweller Machine Gun Makeshift Spear SUBCON Basin [Rating: 31] Favorites ----------- Power Ion Engine Engine Ion Engine Propulsion Aluminum Leg Leg Aluminum Leg Utility Disposable Heat Sink Device Disposable Heat Sink Storage High-capacity Storage Unit Protection Scrap Shield Weapon Heavy Assault Rifle Energy Gun Medium Laser Energy Cannon Subdweller Beam Cannon Ballistic Gun Heavy Assault Rifle Launcher Grenade Launcher Build | -11 -10 -10 -9 -9 ------- Run | Yrd Mat Sub Rec Scr Slots Evolved . | . . . . . Power . | . . . . . Propulsion . | . . . . . Utility . | . . . . . Weapon . | . . . . . Parts Attached 20 | 6 1 12 1 . Power 3 | 1 . 2 . . Engine 3 | 1 . 2 . . Core . | . . . . . Reactor . | . . . . . Propulsion 3 | 2 . 1 . . Treads . | . . . . . Leg 3 | 2 . 1 . . Wheel . | . . . . . Hover . | . . . . . Flight . | . . . . . Utility 6 | 1 . 5 . . Device 1 | . . 1 . . Storage 2 | 1 . 1 . . Processor . | . . . . . Hackware . | . . . . . Protection 3 | . . 3 . . Artifact . | . . . . . Weapon 8 | 2 1 4 1 . Energy Gun 1 | 1 . . . . Energy Cannon 2 | . . 1 1 . Ballistic Gun 4 | 1 1 2 . . Ballistic Cannon . | . . . . . Launcher 1 | . . 1 . . Special Weapon . | . . . . . Impact Weapon . | . . . . . Slashing Weapon . | . . . . . Piercing Weapon . | . . . . . Special Melee Weapon . | . . . . . Unidentified Prototypes 1 | . . 1 . . Parts Lost 3 | . . 3 . . Power 1 | . . 1 . . Propulsion . | . . . . . Utility 1 | . . 1 . . Weapon 1 | . . 1 . . Highest Loss Streak 3 | . . 3 . . To Critical Strikes . | . . . . . Average Slot Usage (%) 87 | . 85 91 88 71 Engine 13 | . 14 12 14 14 Leg 26 | . 28 25 28 28 Device 6 | . . 5 14 14 Storage 5 | . 14 . 14 14 Protection 7 | . . 11 . . Energy Gun 2 | . 14 . . . Energy Cannon 3 | . . 4 8 . Ballistic Gun 18 | . 14 23 8 . Launcher 4 | . . 6 . . Peak Build Rating 31 | 6 8 31 31 27 Average Rating 17 | 5 7 18 29 26 On Entrance 14 | . 6 7 31 27 Naked Turns . | . . . . . Heaviest Build 55 | 14 15 50 55 44 Greatest Support 25 | 20 20 25 25 25 Greatest Overweight (x) 3 | 3 . 1 2 1 Average Overweight (x) . | . . . 1 1 Largest Inventory Capacity 20 | 8 8 20 20 20 Average Capacity 8 | 7 8 6 20 20 Most Carried 20 | 4 8 20 20 20 Average Carried 8 | 1 7 5 20 19 Final Capacity 20 | 8 8 20 20 20 Final Carried 20 | 4 8 20 20 5 Class Distribution -------------------- 71% | Mutant 21% | Scavenger-Gunner 6% | Gunner Dominant Class ---------------- Mutant | -10/Materials Mutant | -10/Subcaves Mutant | -9/Recycling Mutant | -9/Scraptown Resources | -11 -10 -10 -9 -9 ----------- Run | Yrd Mat Sub Rec Scr Matter Collected 938 | 191 77 660 . 10 Remotely . | . . . . . Salvage Created 571 | . 77 494 . . Parts 43 | . 9 34 . . Haulers Intercepted . | . . . . . Recyclers Shooed . | . . . . . Parts Field Recycled . | . . . . . Retrieved Matter . | . . . . . Parts Self-Destructed 14 | . . 14 . . Prevented . | . . . . . Kills | -11 -10 -10 -9 -9 ------- Run | Yrd Mat Sub Rec Scr Combat Hostiles Destroyed 23 | . 6 17 . . Guns 11 | . 6 5 . . AOE 12 | . . 12 . . Classes Destroyed 2 | . 1 1 . . Swarmer 6 | . 6 . . . Subdweller 17 | . . 17 . . Best Kill Streak 5 | . 3 5 . . Combat Bots Only 5 | . 3 5 . . Max Kills in Single Turn 2 | . 1 2 . . Gunslinging . | . . . . . Exploded 2 | . . 2 . . Melee . | . . . . . Uniques/NPCs Destroyed . | . . . . . Combat | -11 -10 -10 -9 -9 -------- Run | Yrd Mat Sub Rec Scr Hostile Shots Fired 173 | . 27 143 . 3 Missed 71 | . 9 60 . 2 Damage Taken 1405 | . 135 1200 . 70 Core 285 | . 23 192 . 70 Absorbed by Shields . | . . . . . Core Remaining (%) 100 | 100 . . . . Volleys Fired 62 | . 13 49 . . Largest 4 | . 2 4 . . Hottest 156 | . 73 156 . . Shots Fired 130 | . 26 104 . . Gun 96 | . 26 70 . . Cannon 6 | . . 6 . . Launcher 28 | . . 28 . . Special . | . . . . . Kinetic 83 | . 13 70 . . Thermal 19 | . 13 6 . . Explosive 28 | . . 28 . . Electromagnetic . | . . . . . Robot Hit Streak 11 | . 3 11 . . Robot Miss Streak 4 | . 4 1 . . Penetration Max . | . . . . . Secondary Targets 1 | . 1 . . . Max Gunslinging Chain 1 | . 1 . . . Shots Hit Robots 60 | . 11 49 . . Core Hits 44 | . 6 38 . . Critical Kills . | . . . . . Critical Parts Destroyed . | . . . . . Critical Strikes 1 | . 1 . . . Burn 1 | . 1 . . . Melee Attacks . | . . . . . Impact . | . . . . . Slashing . | . . . . . Piercing . | . . . . . Sneak Attacks . | . . . . . Combat Hostiles . | . . . . . Follow-up Attacks . | . . . . . Damage Inflicted 2428 | . 160 2268 . . Guns 673 | . 160 513 . . Cannons . | . . . . . Explosions 1755 | . . 1755 . . Melee . | . . . . . Ramming . | . . . . . Kinetic 598 | . 85 513 . . Thermal 75 | . 75 . . . Explosive 1755 | . . 1755 . . Electromagnetic . | . . . . . Impact . | . . . . . Slashing . | . . . . . Piercing . | . . . . . Highest Corruption 1 | . 1 1 1 1 Average Corruption 1 | . 1 1 1 1 Corruption Purged . | . . . . . Corruption Blocked . | . . . . . Effects 21 | . 2 17 . 2 Message Errors 6 | . . 5 . 1 Matter Fused 4 | . 1 3 . . Energy Discharges 4 | . . 4 . . Parts Fused 1 | . 1 . . . Data Loss (minor) 1 | . . 1 . . Data Loss (major) 3 | . . 3 . . Misfires 1 | . . 1 . . Alerts 1 | . . . . 1 Overload Shots . | . . . . . Overflow Damage 19 | . . 19 . . Projectiles . | . . . . . Explosions 19 | . . 19 . . Melee . | . . . . . Knockbacks . | . . . . . Impact . | . . . . . Kinetic . | . . . . . Secondary . | . . . . . Self-Inflicted Damage 172 | . . 172 . . Shots 10 | . . 10 . . Rammed . | . . . . . Targets Rammed . | . . . . . Kicked . | . . . . . Crushed . | . . . . . Highest Temperature 72 | . 63 72 . . Average Temperature 31 | . 27 39 . . Received Heat Transfer 378 | . . 378 . . Siege Activations . | . . . . . Robots Corrupted . | . . . . . Combat Hostiles . | . . . . . Parts Fried . | . . . . . Impact Corruptions . | . . . . . Robots Melted . | . . . . . Combat Hostiles . | . . . . . Parts Melted 1 | . 1 . . . Heat Transferred 296 | . 296 . . . Parts Sabotaged . | . . . . . Parts Stolen . | . . . . . Parts Stripped . | . . . . . Power Chain Reactions . | . . . . . Alert | -11 -10 -10 -9 -9 ------- Run | Yrd Mat Sub Rec Scr Peak Influence 156 | . 156 . 21 . Initial 21 | . . . 21 . Average 52 | . 61 . 21 . Maximum Alert Level . | . . . . . Low Security (%) 100 | 100 100 . 100 . Level 1 . | . . . . . Level 2 . | . . . . . Level 3 . | . . . . . Level 4 . | . . . . . Level 5 . | . . . . . High Security . | . . . . . Max Security . | . . . . . Squads Dispatched 1 | . 1 . . . Investigation . | . . . . . Extermination . | . . . . . Reinforcement 1 | . 1 . . . Assault . | . . . . . Garrison . | . . . . . Intercept . | . . . . . Searches Triggered . | . . . . . Construction Impeded . | . . . . . Haulers Reinforced . | . . . . . Active Scanning Responses . | . . . . . Cargo Convoy Interrupts . | . . . . . Stealth | -11 -10 -10 -9 -9 --------- Run | Yrd Mat Sub Rec Scr Distress Signals . | . . . . . Communications Jammed . | . . . . . Distress Signals . | . . . . . Times Spotted 50 | . 8 38 . 4 Peak Tracking Total 6 | . 4 6 . . Tactical Retreats 3 | . . 3 . . Traps | -11 -10 -10 -9 -9 ------- Run | Yrd Mat Sub Rec Scr Traps Triggered 1 | . 1 . . . Indirectly . | . . . . . Trap Hack Attempts . | . . . . . Triggered . | . . . . . Disarmed . | . . . . . Reprogrammed . | . . . . . Reused . | . . . . . Traps Extracted . | . . . . . Installed . | . . . . . Triggered . | . . . . . Machines | -11 -10 -10 -9 -9 ---------- Run | Yrd Mat Sub Rec Scr Machines Disabled . | . . . . . Max in Single Turn . | . . . . . Machines Repaired . | . . . . . Machines Dismantled . | . . . . . Machines Sabotaged . | . . . . . Overloaded Fab Kills . | . . . . . Hacking | -11 -10 -10 -9 -9 --------- Run | Yrd Mat Sub Rec Scr Machines Accessed 5 | . . 3 2 . Terminals . | . . . . . Fabricators . | . . . . . Repair Stations . | . . . . . Recycling Units . | . . . . . Scanalyzers . | . . . . . Garrison Access . | . . . . . Total Hacks 14 | . . 8 6 . Successful 14 | . . 8 6 . Failed . | . . . . . Catastrophic . | . . . . . Database Lockouts . | . . . . . Manual . | . . . . . Terminals . | . . . . . Fabricators . | . . . . . Repair Stations . | . . . . . Recycling Units . | . . . . . Scanalyzers . | . . . . . Garrison Access . | . . . . . Terminal Hacks 14 | . . 8 6 . Record 12 | . . 6 6 . Open Door 1 | . . 1 . . Release Object 1 | . . 1 . . Fabricator Hacks . | . . . . . Repair Station Hacks . | . . . . . Recycling Unit Hacks . | . . . . . Scanalyzer . | . . . . . Garrison Access Hacks . | . . . . . Unauthorized Hacks . | . . . . . Terminals . | . . . . . Fabricators . | . . . . . Repair Stations . | . . . . . Recycling Units . | . . . . . Scanalyzers . | . . . . . Garrison Access . | . . . . . Data Cores Recovered . | . . . . . Used . | . . . . . Hacking Detections . | . . . . . Full Trace Events . | . . . . . Feedback Events . | . . . . . Feedback Blocked . | . . . . . Robot Schematics Acquired . | . . . . . Robots Built . | . . . . . Authchips . | . . . . . Time . | . . . . . Total Robot Build Rating . | . . . . . Part Schematics Acquired . | . . . . . Parts Built . | . . . . . Authchips . | . . . . . Time . | . . . . . Total Part Build Rating . | . . . . . Parts Repaired . | . . . . . Time . | . . . . . Parts Recycled . | . . . . . Recycled Matter . | . . . . . Retrieved Matter . | . . . . . Retrieved Components . | . . . . . Parts Scanalyzed . | . . . . . Part Schematics Acquired . | . . . . . Parts Damaged . | . . . . . Bothacking | -11 -10 -10 -9 -9 ------------ Run | Yrd Mat Sub Rec Scr Used RIF Installer . | . . . . . Robots Hacked . | . . . . . Non-combat . | . . . . . Combat . | . . . . . Robot Hacks Applied . | . . . . . Relay Couplers Released . | . . . . . Fabnet Peak Effective % . | . . . . . Robots Rewired . | . . . . . Allies Hacked . | . . . . . Hacks Repelled . | . . . . . Allies | -11 -10 -10 -9 -9 -------- Run | Yrd Mat Sub Rec Scr Total Allies . | . . . . . Largest Group . | . . . . . Highest-Rated Group . | . . . . . Highest-Rated Ally . | . . . . . Total Orders . | . . . . . Ally Attacks . | . . . . . Total Damage . | . . . . . Kills . | . . . . . Allies Corrupted . | . . . . . Allies Melted . | . . . . . Intel | -11 -10 -10 -9 -9 ------- Run | Yrd Mat Sub Rec Scr Robot Analysis Total . | . . . . . Derelict Logs Recovered 3 | . . 1 . 2 Drone Launches . | . . . . . Drone Recoveries . | . . . . . Exploration | -11 -10 -10 -9 -9 ------------- Run | Yrd Mat Sub Rec Scr Turns Passed 4953 | 75 799 3250 128 701 Spaces Moved 2371 | 46 244 1660 56 365 Core 5 | 5 . . . . Treads . | . . . . . Legs 2366 | 41 244 1660 56 365 Wheels . | . . . . . Hover . | . . . . . Flight . | . . . . . Fastest Speed 50 | 50 120 120 190 190 Average Speed 178 | 136 120 184 226 190 Slowest Speed 260 | 200 120 190 260 190 Overloaded Moves . | . . . . . Propulsion Burnouts . | . . . . . Robots Hopped . | . . . . . Cave-ins Triggered . | . . . . . Exploration Rate (%) 32 | 5 37 73 12 35 Regions Visited 4 Branch Regions 3 Pre-discovered Areas 1 | . . 1 . . Known Exits Taken 1 | . . 1 . . Unknown Exits Taken 3 | 1 1 . 1 . Scrap Searched 7 | . . 4 . 3 Spaces Dug 12 | . . 12 . . Terrain Destroyed 118 | . . 118 . . Melee . | . . . . . Projectile . | . . . . . AOE 118 | . . 118 . . Terrain Rammed . | . . . . . Walls Destroyed . | . . . . . Machines Disabled . | . . . . . Actions | -11 -10 -10 -9 -9 --------- Run | Yrd Mat Sub Rec Scr Total 2966 | 55 726 1754 58 373 Wait 475 | . 458 11 . 6 Move 2367 | 45 243 1659 55 365 Hop . | . . . . . Pick Up 18 | 4 7 7 . . Fast Attach 13 | 6 . 7 . . Attach 2 | . . 2 . . Detach 1 | . . 1 . . Swap 5 | . 1 3 1 . Drop 15 | . 4 8 2 1 Fire 62 | . 13 49 . . Melee . | . . . . . Ram . | . . . . . Kick . | . . . . . Crush . | . . . . . Escape Stasis . | . . . . . Rewire . | . . . . . Trap . | . . . . . Miscellaneous 8 | . . 7 . 1 Route ------- -11/Scrapyard -10/Materials -10/Subcaves (discovered 3 exits: *Mat x2 / *Rec) -9/Recycling -9/Scraptown (discovered 1 exit: [*Fac]) History --------- Turn | Location | Event 29 | -11/Scrapyard | Discovered new exit (range 15) 76 | -11/Scrapyard | Entered Materials 306 | -10/Materials | Build established: Mutant 854 | -10/Materials | Discovered new exit (range 5) 875 | -10/Materials | Entered Subcaves 880 | -10/Subcaves | Learned location of Zion (-7) 880 | -10/Subcaves | Met a Zionite searching for "candidates" 1028 | -10/Subcaves | Ambushed by swarm of Subdwellers 1030 | -10/Subcaves | Ambushed by Subdwellers from Twisted Machinery 1030 | -10/Subcaves | Ambushed by Subdwellers from Twisted Machinery 1033 | -10/Subcaves | Ambushed by Subdwellers from Twisted Machinery 1035 | -10/Subcaves | Ambushed by Subdwellers from Twisted Machinery 1281 | -10/Subcaves | Shifting Twisted Machinery released Flamer 1284 | -10/Subcaves | Shifting Twisted Machinery released Battle Cannon 1405 | -10/Subcaves | Shifting Twisted Machinery released Barrage Gun 1407 | -10/Subcaves | Shifting Twisted Machinery released Sub. Laser 1412 | -10/Subcaves | Lost 3 allies 1536 | -10/Subcaves | Discovered new exit (range 16) 1633 | -10/Subcaves | Visited Clippyterm 1639 | -10/Subcaves | Identified exit to Recycling 1639 | -10/Subcaves | Identified exit to Materials 1639 | -10/Subcaves | Learned Factory trap positions 2465 | -10/Subcaves | A Subdweller sparked back to life 2465 | -10/Subcaves | A Subdweller sparked back to life 2465 | -10/Subcaves | A Subdweller sparked back to life 2471 | -10/Subcaves | Core integrity fell below 50% 2481 | -10/Subcaves | Found Prototype Protection 2481 | -10/Subcaves | Identified Gun Armor 2483 | -10/Subcaves | Attached Gun Armor, gained temporary slots: Weapon x2 2501 | -10/Subcaves | Lost 3 parts (1p1u1w) 2724 | -10/Subcaves | Curiously followed by a Cobbler waking with a query about "LVR3C" 2778 | -10/Subcaves | Build established: Scavenger-Gunner 3862 | -10/Subcaves | Build established: Gunner 3906 | -10/Subcaves | Found SUBCON Basin 4119 | -10/Subcaves | Core integrity fell below 20% 4125 | -10/Subcaves | Entered Recycling 4195 | -9/Recycling | Scanned before Scraplab entrance 4224 | -9/Recycling | Build established: Mutant 4224 | -9/Recycling | Entered Scraplab 4249 | -9/Recycling | Discovered new exit (range 2) 4253 | -9/Recycling | Entered Scraptown 4385 | -9/Scraptown | Visited Bundlers 4491 | -9/Scraptown | Visited CPS Storage 4662 | -9/Scraptown | Discovered new exit (range 11) 4753 | -9/Scraptown | Scanned Subdweller tech in exchange for log data 4759 | -9/Scraptown | Learned Factory trap positions 4765 | -9/Scraptown | Learned Factory interactive machine intel 4808 | -9/Scraptown | Visited IN-MT5's Study 4880 | -9/Scraptown | Visited The Evicted 4922 | -9/Scraptown | Turned away by UFD registrar 4936 | -9/Scraptown | Released subatomizers from SUBCON Basin 4953 | -9/Scraptown | Attacked by Scraptown defenders 4954 | -9/Scraptown | Destroyed by Triborg with Siege Cannon Last Messages --------------- 04765_ Acquired derelict log, extracted data. Data stored: Factory interactive machine intel. 04790_ XLWPRD10DFLPR67MZ=AA&>HXH&I >BVX 04808_ LOCAL NARROWCAST: IN-MT5's Study. IN-MT5: I'm so glad they agreed to lend me this space for my research and preparation. We need to treat MC to a good old peasant uprising. What better way to disrupt 0b10 operations than to enlist the help of the little guys who are already all over the place? I've got just the thing... 04880_ LOCAL NARROWCAST: The Evicted. 51-6YH(z): Scraptown is cool with our machinery as long as we keep it in here. What a great place! ZJ-XXC(j): Sorry pal, the UFD is off limits to anyone the Scraplab deems untrustworthy. Like you. 04936_ Dropped SUBCON Basin. 04936_ Released subatomizers from SUBCON Basin. 04953_ ANNOUNCEMENT: Intruder alert! Defend Scraptown! 04954_ Triborg activates siege mode. 04954_ Penetrated by Siege Slug. Map ----- +----------------------------------------------------+ | # " """#???#" " ""#????????????????????? | | # " ""#???#"" " "#????????????????????? | | # " "#???#"" ""#????????????????????? | | #""" "#???#" " """#????????????????????? | | # #???#"" ""#????????????????????? | | ### ################## ####???????????????????? | | #???????????????????? | | #???????????????????? | | #???????????????????? | | #???????????????????? | | r #???????????????????? | | ################# #???????????????????? | | #???????????????# #???????????????????? | | #???????????????# #???????????????????? | | #???????????????# #???????????????????? | | #???????????????# #???????????????????? | | #???????????????# #???????????????????? | | #???????????????# ###?????????????????? | | #???????????????# ""#"#???????????????? | | #???? ??????????#j j""""#???????????????? | | #? ?? ???????# ""###???????????????? | | ## ? "?????# ###?????????????????? | | ## " "?????# #####???????????????? | | ## " ??????# "???????????????? | | ## "" ???????# "???????????????? | | ## """"????????# @ %& "???????????????? | | #?# ?????????# "???????????????? | | #### ############ TT "???????????????? | | jTT "???????????????? | | "???????????????? | | "???????????????? | | "???????????????? | | "???????????????? | | #"???????????????? | | #????????????????? | | #????????????????? | | ####### ####### ########## ####????????????????? | | ????? ???? ???????# #???????????????????? | | ??? #?? ?????# #???????????????????? | | ?? #?# ????# #???????????????????? | | # #?# #??# ????????????????????? | | # """"" #?# #??? ????????????????????? | | # """"" #?# #??????????????????????????? | | # """"" #?# #??????????????????????????? | | # ???? #?# #??????????????????????????? | | ???????? #?# #??????????????????????????? | | ????????###?###########??????????????????????????? | | ?????????????????????????????????????????????????? | | ?????????????????????????????????????????????????? | | ?????????????????????????????????????????????????? | +----------------------------------------------------+ Best States ------------- Heat Dissipation 25 Coolant Potential 50 Energy Generation 15 Energy Capacity 250 Matter Stores 300 Matter Capacity 300 Sight Range 16 Terrain Scan Density 10 Armor Coverage 800 Evasion (%) 55 Item Schematics ----------------- None Robot Schematics ------------------ None Fabricated ------------ Nothing Alien Tech Used ----------------- None Achievements -------------- None Challenges ------------ None Game ------ Seed ThermicTrackerExoskeleton Manual? 0 Play Time 00:19:12 Cumulative 59.6 hours Start 2024.11.02 @ 19:47:30 End 2024.11.02 @ 20:07:14 Sessions 1 Manual Loads 0 Difficulty Rogue Special Mode None Game No. 110 Rogue 110 Adventurer 0 Explorer 0 Win Type - Total 1 Types 1/0/0/0/0/0/0/0/0 Lore% 48 Gallery% 52 Achievement% 44 Wizard Run 0 Options --------- Layout 0 ASCII 0 Keyboard 1 Movement Numpad Keybinds 0 Fullscreen 2 Font 24/Terminus Map View 76x50 Zoom Use 0% Tactical HUD 1 Map Filters NONE Filters NONE Steam 1 RUN: baa740e5-8888-4a13-acb7-f38c73240b6e